[Event "Stare Mesto Open-A 2022"]
[Site "Stare Mesto"]
[Date "2022.08.13"]
[Round "2.3"]
[White "Sramek, Vojtech"]
[Black "Mojzis, Jaroslav"]
[Result "1/2-1/2"]
[ECO "C54"]
[WhiteElo "2249"]
[BlackElo "2108"]
[Annotator "TA"]
[PlyCount "85"]
[EventDate "2022.08.12"]
[EventType "swiss"]
[EventCountry "CZE"]
[SourceTitle "playchess.com"]
[Source "ChessBase"]
[SourceQuality "1"]
[TimeControl "40/5400+30:1800+30"]

{[%evp 13,85,42,29,36,39,31,41,38,36,31,36,38,34,37,34,39,46,46,28,35,23,27,43,38,40,32,31,18,16,10,12,0,0,8,4,12,98,89,83,97,90,41,35,17,15,0,0,0,16,16,27,12,9,4,11,16,10,-34,-16,-34,-34,-35,-36,-37,-40,-42,-41,-44,-29,-114,-2,-8,0,0]} 1. e4 {[%emt 0:00:04]} e5 {[%emt 0:00:09]} 2. Nf3 {[%emt 0:00:11]} Nc6 {[%emt 0:00:11]} 3. Bc4 {[%emt 0:00:10]} Bc5 {[%emt 0:00:10]} 4. c3 {[%emt 0:00:06]} Nf6 {[%emt 0:00:09]} 5. d3 {[%emt 0:00:08]} O-O {[%emt 0:00:15]} 6. O-O {[%emt 0:00:09]} d5 {[%emt 0:00:21]} 7. exd5 {[%emt 0:00:10]} Nxd5 {[%emt 0:00:06]} 8. a4 {[%emt 0:00:49] C54: Giuoco Piano: 4 c3 Nf6, main lines with 5 d4 and 5 d3.} a5 {[%emt 0:00:35]} 9. Nbd2 {[%emt 0:07:55][%cal Bb1d2,Bd2e4,Be4g3][%mdl 32]} Bg4 {[%emt 0:04:52]} 10. Ne4 {[%emt 0:00:54] White is slightly better.} Be7 {[%emt 0:05:11]} 11. h3 {[%emt 0:05:03]} Bh5 {[%emt 0:00:52]} 12. Ng3 {[%emt 0:00:27]} Bg6 {[%emt 0:01:23]} 13. Re1 {[%emt 0:00:35][%cal Bf1e1,Be1e5,Be5c5][%mdl 32]} Nb6 {[%emt 0:01:43]} 14. Bb5 {[%emt 0:03:22]} Bd6 {[%emt 0:08:08] [#]} 15. Bxc6 $146 {[%emt 0:14:47]} (15. Be3 {is more complex.} Nd5 16. Bg5 f6 17. Bd2) ({Predecessor:} 15. Bg5 f6 16. Be3 Nd5 17. Bd2 Bc5 18. Nh4 Bf7 19. Nhf5 Nde7 20. Qg4 Nxf5 21. Nxf5 {1-0 (45) Andriasian,Z (2586)-Sanal,V (2510) Chess.com INT 2018}) 15... bxc6 {[%emt 0:00:18]} 16. Nxe5 {[%emt 0:02:15]} Bxe5 {[%emt 0:02:24]} 17. Rxe5 {[%emt 0:00:07]} Qxd3 {[%emt 0:06:36]} 18. Qxd3 {[%emt 0:07:33]} Bxd3 {[%emt 0:00:10]} 19. Rc5 {[%emt 0:03:23]} Rfe8 {[%emt 0:08:29]} 20. Bf4 {[%emt 0:03:40]} Nd5 {[%emt 0:01:10]} 21. Bd2 {[%emt 0:01:04]} Reb8 {[%emt 0:06:34]} 22. c4 {[%emt 0:17:26]} Rxb2 {[%emt 0:07:06]} 23. cxd5 {[%emt 0:01:23]} Rxd2 {[%emt 0:00:12]} 24. Rxc6 {[%emt 0:01:18] d6 is the strong threat.} Rc2 {[%emt 0:03:40] [#]} (24... Bg6 $11) 25. Rc1 $1 $16 {[%emt 0:02:17]} Rxc1+ {[%emt 0:04:01]} 26. Rxc1 {[%emt 0:00:10][%mdl 4096] Endgame KRB-KRN} Rc8 {[%emt 0:05:23]} 27. Rc5 {[%emt 0:06:37]} (27. d6 $16) 27... Kf8 $1 $14 {[%emt 0:01:30]} 28. Rxa5 {[%emt 0:00:35]} (28. d6 $5) 28... Ke7 $1 {[%emt 0:00:41]} 29. Nf1 {[%emt 0:05:02]} Rb8 {[%emt 0:04:15] And now ...Rb1 would win.} 30. Ne3 {[%emt 0:00:18]} Rb1+ {[%emt 0:00:21]} 31. Kh2 {[%emt 0:00:10]} Rb2 {[%emt 0:01:54]} 32. Kg3 {[%emt 0:00:50]} Kd6 {[%emt 0:02:10]} 33. Ra8 {[%emt 0:01:41]} f5 {[%emt 0:00:47]} 34. Rf8 {[%emt 0:10:07]} g6 {[%emt 0:06:27]} 35. f4 {[%emt 0:04:45]} Ra2 {[%emt 0:02:08][%mdl 1024] Black has compensation.} 36. Rf6+ {[%emt 0:00:30]} Kc5 {[%emt 0:05:33] White must now prevent ...Be4.} 37. Rc6+ {[%emt 0:00:37]} Kd4 {[%emt 0:00:09]} 38. Nd1 {[%emt 0:01:30]} Be4 {[%emt 0:03:44]} 39. Nf2 $1 {[%emt 0:00:07]} Bxd5 {[%emt 0:01:13]} 40. Rxc7 {[%emt 0:00:09]} h5 {[%emt 0:02:54]} 41. h4 {[%emt 0:02:01] [#]} (41. Rg7 $11 {remains equal.}) 41... Ra3+ {[%emt 0:02:32]} ({Not} 41... Rxa4 42. Rc2 $15 (42. Rd7 Ra2 $17)) ({Better is} 41... g5 $1 $17 {[%cal Rg5f4]} 42. hxg5 h4+ 43. Kxh4 Rxf2) 42. Kh2 $11 {[%emt 0:00:09]} Rxa4 {[%emt 0:03:55]} 43. Rc2 {Weighted Error Value: White=0.11 (very precise) /Black=0.13 (very precise)} 1/2-1/2

[Event "Stare Mesto Open-A 2022"]
[Site "Stare Mesto"]
[Date "2022.08.13"]
[Round "2.4"]
[White "Vaculik, Martin"]
[Black "Babula, Vlastimil"]
[Result "0-1"]
[ECO "D11"]
[WhiteElo "2284"]
[BlackElo "2571"]
[Annotator "TA"]
[PlyCount "76"]
[EventDate "2022.08.12"]
[EventType "swiss"]
[EventCountry "CZE"]
[SourceTitle "playchess.com"]
[Source "ChessBase"]
[SourceQuality "1"]
[TimeControl "40/5400+30:1800+30"]

{[%evp 13,76,29,45,35,97,15,26,8,30,-31,-38,-47,-22,-18,-8,-18,-14,-31,12,-13,-11,-22,-12,-25,-8,-31,0,-29,-13,-27,-27,-22,-36,-54,-56,-166,-162,-156,-156,-163,-158,-220,-216,-215,-205,-172,-179,-261,-86,-249,-258,-250,-237,-310,-317,-375,-352,-360,-364,-341,-345,-938,-953,-640,-597]} 1. d4 {[%emt 0:01:19]} d5 {[%emt 0:00:06]} 2. c4 {[%emt 0:00:16]} c6 {[%emt 0:00:09]} 3. Nf3 {[%emt 0:01:41]} Nf6 {[%emt 0:00:05]} 4. e3 {[%emt 0:00:04]} e6 {[%emt 0:00:16]} 5. Bd3 {[%emt 0:02:51]} Nbd7 {[%emt 0:01:00]} 6. Nbd2 {[%emt 0:00:18][%cal Bb1d2,Bd2c4,Bc4e5][%mdl 32]} dxc4 {[%emt 0:11:12]} 7. Nxc4 {[%emt 0:00:08]} b5 {[%emt 0:00:53]} 8. Nce5 {[%emt 0:01:02] D30: Queen's Gambit Declined: Systems without Nc3.} c5 $5 {[%emt 0:05:29][%mdl 4] [#] A promising side line.} (8... Bb7 $14) 9. dxc5 $146 {[%emt 0:10:30]} (9. O-O $16) ({Predecessor:} 9. O-O c4 10. Be2 a6 11. a4 Bb7 12. b3 Nxe5 13. Nxe5 Bd6 14. bxc4 b4 15. a5 O-O {1-0 (50) Kuzmin,K (2280)-Sciarretta,R (2270) LSS email 2014}) 9... Bxc5 $11 {[%emt 0:00:46]} 10. O-O {[%emt 0:00:34] And now b4 would win. White has an edge.} a6 {[%emt 0:02:34]} 11. Qb3 {[%emt 0:13:24]} ({White should play} 11. Nxd7 $11 Qxd7 12. Qe2) 11... Nxe5 $15 {[%emt 0:11:50]} 12. Nxe5 {[%emt 0:01:10]} Qd6 {[%emt 0:01:21]} (12... Bd6 $5 {[%cal Rd6e5]} 13. f4 O-O $15) 13. Nf3 {[%emt 0:01:49]} Bb7 {[%emt 0:01:36]} 14. Rd1 {[%emt 0:00:49][%cal Od3b5]} Qe7 {[%emt 0:05:56]} 15. Bd2 {[%emt 0:03:43]} Ne4 {[%emt 0:01:35]} 16. Rac1 {[%emt 0:04:34] Threatens to win with Bxe4.} Bd6 {[%emt 0:02:41]} 17. Be2 {[%emt 0:08:26]} O-O {[%emt 0:05:19]} 18. Be1 {[%emt 0:08:50]} h6 {[%emt 0:09:37]} 19. Qc2 {[%emt 0:06:18]} Bd5 {[%emt 0:05:06]} 20. Qb1 {[%emt 0:03:01]} f5 {[%emt 0:02:58]} 21. Bc3 {[%emt 0:02:53]} f4 {[%emt 0:02:11] Strongly threatening ...fxe3.} 22. Bd4 {[%emt 0:06:03]} Bb7 {[%emt 0:04:55][%cal Oe4f2]} 23. exf4 {[%emt 0:05:11]} Bxf4 {[%emt 0:00:26]} 24. Be3 {[%emt 0:00:27]} ({Better is} 24. Rc2 $15) 24... Bxe3 $19 {[%emt 0:00:51]} 25. fxe3 {[%emt 0:00:05] [#]} Ng5 $1 {[%emt 0:00:21]} 26. Rf1 {[%emt 0:05:06]} Be4 {[%emt 0:02:17] Prevents Qc2.} 27. Bd3 {[%emt 0:00:18]} (27. Qa1 $17) 27... Nxf3+ {[%emt 0:00:49]} 28. gxf3 {[%emt 0:00:27]} Bxf3 {[%emt 0:02:31]} ({Not} 28... Qg5+ 29. Kh1 Bxf3+ 30. Rxf3 Rxf3 31. Bh7+ Kh8 32. Be4 $17) 29. Rxf3 {[%emt 0:00:04]} Rxf3 {[%emt 0:00:03]} 30. Be4 {[%emt 0:00:03]} (30. Bh7+ {was called for.} Kh8 31. Be4) 30... Qg5+ {[%emt 0:01:55]} 31. Kh1 {[%emt 0:00:04] This move loses the game for White.} Raf8 {[%emt 0:02:13] ( -> ...Rf2)} 32. Bxf3 {[%emt 0:00:08]} Rxf3 {[%emt 0:00:04][%mdl 4096] Endgame KQR-KQR} 33. Qe4 {[%emt 0:02:54]} Rxe3 {[%emt 0:08:18] Active counter play!} 34. Rc8+ {[%emt 0:02:14]} Kf7 {[%emt 0:00:01]} 35. Rc7+ {[%emt 0:00:20] [#]} Kf6 $1 {[%emt 0:00:02]} ({Avoid the trap} 35... Kg8 $2 36. Rc8+ Kf7 37. Rc7+ Kf6 38. Qd4+ Qe5 39. Qxe5+ Kxe5 40. Ra7 $19) 36. Qd4+ {[%emt 0:00:33]} Qe5 {[%emt 0:00:25]} 37. Qh4+ {[%emt 0:02:40]} (37. Qxe5+ Rxe5 38. Rc2) 37... Kg6 {[%emt 0:00:09]} 38. Qg4+ {[%emt 0:00:06]} Kh7 {[%emt 0:00:12] Weighted Error Value: White=0.48/Black=0.09 (flawless)} 0-1

[Event "Stare Mesto Open-A 2022"]
[Site "Stare Mesto"]
[Date "2022.08.13"]
[Round "2.5"]
[White "Murko, David"]
[Black "Zelba, Lukas"]
[Result "1-0"]
[ECO "C18"]
[WhiteElo "2213"]
[BlackElo "1945"]
[Annotator "TA"]
[PlyCount "35"]
[EventDate "2022.08.12"]
[EventType "swiss"]
[EventCountry "CZE"]
[SourceTitle "playchess.com"]
[Source "ChessBase"]
[SourceQuality "1"]
[TimeControl "40/5400+30:1800+30"]

{[%evp 12,35,16,16,629,618,725,725,724,704,731,691,702,701,1287,1281,1399,1404,1347,1342,1346,1342,1322,1289,1182,922]} 1. e4 {[%emt 0:00:03]} e6 {[%emt 0:00:16]} 2. d4 {[%emt 0:00:05]} d5 {[%emt 0:00:32]} 3. Nc3 {[%emt 0:00:07]} Bb4 {[%emt 0:04:59]} 4. e5 {[%emt 0:00:15]} c5 {[%emt 0:00:06]} 5. a3 {[%emt 0:00:05]} Bxc3+ {[%emt 0:09:22]} 6. bxc3 {[%emt 0:00:06]} Qc7 {[%emt 0:00:04]} 7. Qg4 {[%emt 0:03:49]} cxd4 $2 {[%emt 0:12:51][%mdl 8192] 7...f6 is becoming the main line. C18: French: 3 Nc3 Bb4: Main line: 7 h4 and 7 Qg4.} (7... Kf8 $11) 8. Qxg7 $18 {[%emt 0:04:18] White is clearly winning.} Qxc3+ {[%emt 0:00:06]} 9. Kd1 {[%emt 0:00:09]} Qxa1 {[%emt 0:02:48]} 10. Qxh8 {[%emt 0:00:06]} Kf8 {[%emt 0:00:06]} 11. Bd3 {[%emt 0:00:50] [#] Nf3 is the strong threat.} Nc6 {[%emt 0:08:31]} 12. Nf3 {[%emt 0:04:08] [#] Threatens to win with Ke2.} Bd7 $146 {[%emt 0:02:12]} ({Predecessor:} 12... Nce7 13. Ng5 Bd7 14. Nxh7+ Ke8 15. Ke2 Qc3 16. Qg7 Kd8 17. Qxf7 Rc8 18. Re1 Bb5 19. Bxb5 Qxc2+ 20. Kf1 d3 21. Qxe6 Kc7 22. Qd6# {1-0 (22) Danko,J (1996)-Michelakis,E (1632) Rhodes 2015}) 13. Ke2 {[%emt 0:03:21] aiming for Bh6+.} Qc3 {[%emt 0:04:26]} 14. Bh6+ {[%emt 0:03:50]} Ke7 {[%emt 0:00:23]} 15. Bg5+ {[%emt 0:00:09] A strong pair of Bishops.} Kf8 {[%emt 0:00:06]} 16. Bf6 {[%emt 0:00:23] [#] Intending Qg7+ and mate.} Nce7 {[%emt 0:01:31]} 17. Ng5 {[%emt 0:04:29]} Ke8 {[%emt 0:03:04]} 18. Qxh7 {[%emt 0:02:52] Black did not feel at home in the position after the opening.  Weighted Error Value: White=0.08 (flawless) /Black=2.92} 1-0

[Event "Stare Mesto Open-A 2022"]
[Site "Stare Mesto"]
[Date "2022.08.13"]
[Round "2.7"]
[White "Skalsky, Alexandr"]
[Black "Kovarik, David"]
[Result "1-0"]
[ECO "B53"]
[WhiteElo "2187"]
[BlackElo "1741"]
[Annotator "ChessBase"]
[PlyCount "67"]
[EventDate "2022.08.12"]
[EventType "swiss"]
[EventCountry "CZE"]
[SourceTitle "playchess.com"]
[Source "ChessBase"]
[SourceQuality "1"]
[TimeControl "40/5400+30:1800+30"]

1. e4 {[%emt 0:00:03]} c5 {[%emt 0:00:02]} 2. Nf3 {[%emt 0:00:03]} d6 {[%emt 0:00:08]} 3. d4 {[%emt 0:00:02]} cxd4 {[%emt 0:00:10]} 4. Qxd4 {[%emt 0:00:02]} Nc6 {[%emt 0:00:18]} 5. Bb5 {[%emt 0:00:04]} Bd7 {[%emt 0:00:23]} 6. Bxc6 {[%emt 0:00:05]} bxc6 {[%emt 0:00:46]} 7. c4 {[%emt 0:00:40]} e5 {[%emt 0:05:42]} 8. Qd3 {[%emt 0:00:09]} Be7 {[%emt 0:01:38]} 9. Nc3 {[%emt 0:01:39]} Nf6 {[%emt 0:01:29]} 10. O-O {[%emt 0:06:53]} O-O {[%emt 0:06:23]} 11. Rd1 {[%emt 0:14:14]} Bg4 {[%emt 0:12:29]} 12. Bg5 {[%emt 0:12:48]} Qb6 {[%emt 0:07:56]} 13. h3 {[%emt 0:07:02]} Bh5 {[%emt 0:04:50]} 14. b3 {[%emt 0:15:28]} Rfd8 {[%emt 0:06:38]} 15. g4 {[%emt 0:00:46]} Bg6 {[%emt 0:00:43]} 16. Qe2 {[%emt 0:00:41]} h6 {[%emt 0:06:39]} 17. Bxf6 {[%emt 0:01:03]} Bxf6 {[%emt 0:00:18]} 18. Rd3 {[%emt 0:00:30]} Rd7 {[%emt 0:06:31]} 19. Rad1 {[%emt 0:02:06]} Rad8 {[%emt 0:01:33]} 20. R1d2 {[%emt 0:07:38]} Qa5 {[%emt 0:09:39]} 21. Rb2 {[%emt 0:08:17]} Rb7 {[%emt 0:10:09]} 22. Nd2 {[%emt 0:00:25]} Bg5 {[%emt 0:05:08]} 23. Nf1 {[%emt 0:00:35]} Bf4 {[%emt 0:02:30]} 24. Rc2 {[%emt 0:02:09]} Qc7 {[%emt 0:03:08]} 25. f3 {[%emt 0:01:37]} Qe7 {[%emt 0:01:31]} 26. Qf2 {[%emt 0:00:26]} h5 {[%emt 0:01:34]} 27. Ne3 {[%emt 0:03:18]} hxg4 {[%emt 0:01:38]} 28. hxg4 {[%emt 0:00:01]} f6 {[%emt 0:01:44]} 29. Ng2 {[%emt 0:03:51]} Bg5 {[%emt 0:01:11]} 30. Re2 {[%emt 0:05:15]} Kf7 {[%emt 0:00:36]} 31. Re1 {[%emt 0:00:16]} Rh8 {[%emt 0:00:22]} 32. Red1 {[%emt 0:00:08]} Rd7 {[%emt 0:01:04]} 33. Qc5 {[%emt 0:03:56]} Rhd8 {[%emt 0:00:52]} 34. Qxc6 {[%emt 0:00:15]} 1-0

[Event "Stare Mesto Open-A 2022"]
[Site "Stare Mesto"]
[Date "2022.08.13"]
[Round "2.8"]
[White "Neuman, Petr"]
[Black "Sramek, Ondrej"]
[Result "1-0"]
[ECO "A30"]
[WhiteElo "2378"]
[BlackElo "1985"]
[Annotator "TA"]
[PlyCount "85"]
[EventDate "2022.08.12"]
[EventType "swiss"]
[EventCountry "CZE"]
[SourceTitle "playchess.com"]
[Source "ChessBase"]
[SourceQuality "1"]
[TimeControl "40/5400+30:1800+30"]

{[%evp 10,84,35,27,45,46,86,85,91,90,98,81,90,79,96,95,89,81,103,102,119,127,187,121,141,132,136,141,234,247,231,167,166,119,139,118,118,91,87,74,78,82,72,79,91,86,80,74,66,60,77,76,168,163,211,224,214,210,549,504,547,511,701,720,1185,1155,1118,999,29991,29992,29992,29993,29993,29994,29998,29999,29999]} 1. c4 {[%emt 0:00:04]} c5 {[%emt 0:00:34]} 2. Nf3 {[%emt 0:00:30]} Nc6 {[%emt 0:00:21]} 3. Nc3 {[%emt 0:00:22]} g6 {[%emt 0:00:29]} 4. e3 {[%emt 0:00:12]} Bg7 {[%emt 0:00:27]} 5. d4 {[%emt 0:00:06]} d6 {[%emt 0:00:23]} 6. Be2 {[%emt 0:00:24]} Nf6 {[%emt 0:01:47] A35: Symmetrical English: 2 Nc3 Nc6 3 Nf3.} 7. d5 {[%emt 0:00:42]} Nb8 {[%emt 0:04:29]} 8. e4 {[%emt 0:01:00]} Nbd7 {[%emt 0:01:08] White is better.} 9. O-O {[%emt 0:00:45]} O-O {[%emt 0:00:07]} 10. Bg5 {[%emt 0:00:55]} a6 {[%emt 0:00:56]} 11. a4 {[%emt 0:00:05]} Qc7 {[%emt 0:09:01] [#]} 12. Qd2 $146 {[%emt 0:00:31]} ({Predecessor:} 12. Re1 h6 13. Bh4 g5 14. Bg3 Nh5 15. Bd3 Nxg3 16. hxg3 Qa5 17. Qd2 Qb4 18. Reb1 {1-0 (41) Fernandes,E (1908)-Silva,M (1695) Braga 2006}) 12... Re8 {[%emt 0:00:17]} 13. Rfe1 {[%emt 0:03:21] White is more active.} Ng4 {[%emt 0:01:53]} 14. h3 {[%emt 0:00:31]} Nge5 {[%emt 0:01:08]} 15. Nh2 {[%emt 0:00:06]} Nf6 {[%emt 0:20:43]} (15... f6 $16) 16. f4 {[%emt 0:06:30]} (16. Bh6 $18) 16... Ned7 $16 {[%emt 0:00:14]} 17. Bf3 {[%emt 0:03:50]} h6 {[%emt 0:01:55]} 18. Bh4 {[%emt 0:00:04]} e5 {[%emt 0:02:42]} (18... Nh7 $16 {was worth a try.} 19. a5 Qb8) 19. dxe6 $1 $18 {[%emt 0:00:57]} Rxe6 {[%emt 0:07:41]} 20. Bf2 {[%emt 0:00:10]} Rb8 {[%emt 0:00:44]} 21. g4 {[%emt 0:01:31]} (21. Red1 $18) 21... b6 {[%emt 0:00:40][%cal Og6g5]} 22. Nf1 {[%emt 0:00:14]} Bb7 {[%emt 0:00:12]} 23. Ng3 {[%emt 0:00:28]} Bc6 {[%emt 0:00:44]} 24. h4 {[%emt 0:04:02]} b5 {[%emt 0:00:25]} 25. g5 {[%emt 0:00:14] [#] Threatens to win with axb5.} Nh7 {[%emt 0:01:30]} 26. axb5 {[%emt 0:04:19]} axb5 {[%emt 0:00:07]} 27. cxb5 {[%emt 0:00:19]} Bxb5 {[%emt 0:00:27]} 28. Rad1 {[%emt 0:05:16][%cal Ba1d1,Bd1d6,Bd6c6,Bc6c8][%mdl 32]} hxg5 {[%emt 0:04:44]} 29. hxg5 {[%emt 0:00:49]} Bc6 {[%emt 0:02:52]} 30. Bg4 {[%emt 0:00:29]} Re7 {[%emt 0:03:37]} (30... Nhf8 $16) 31. Qxd6 {[%emt 0:01:07]} Qxd6 {[%emt 0:00:12]} (31... Ndf8 {might work better.} 32. Qxc7 (32. Qxc5 Qxf4 33. Be2 Rc7 $17) (32. Bxc5 Rxb2 33. Nd5 Bxd5 $16) 32... Rxc7) 32. Rxd6 {[%emt 0:00:05]} Rxb2 {[%emt 0:00:45]} 33. e5 {[%emt 0:00:31]} ({Don't take} 33. Rxc6 Bxc3 34. Rd1 Rd2 35. Rxd2 Bxd2) 33... Rb3 $2 {[%emt 0:01:44]} (33... Nb8 {is a better chance.} 34. Nge4 (34. Rd8+ Re8 $16) 34... Re8) 34. Rxc6 {[%emt 0:01:25]} Rxc3 {[%emt 0:00:15]} 35. Ne4 {[%emt 0:01:21]} Rc4 {[%emt 0:02:11]} 36. Bxd7 {[%emt 0:12:51]} Rxd7 {[%emt 0:00:09] [#]} 37. Rc8+ $1 {[%emt 0:00:04]} Bf8 {[%emt 0:03:59]} 38. Nf6+ {[%emt 0:05:06]} ({Weaker is} 38. Bxc5 Rdd4 $18) 38... Nxf6 {[%emt 0:01:03]} 39. exf6 {[%emt 0:00:04] White mates.} Rxf4 {[%emt 0:00:41]} 40. Ree8 {[%emt 0:00:14]} Rg4+ {[%emt 0:00:44]} 41. Kh2 {[%emt 0:30:58]} Rd2 {[%emt 0:30:18]} 42. Rxf8+ {[%emt 0:00:07]} Kh7 {[%emt 0:00:04]} 43. Rh8# {[%emt 0:00:06] Weighted Error Value: White=0.09 (flawless) /Black=0.41} 1-0

[Event "Stare Mesto Open-A 2022"]
[Site "Stare Mesto"]
[Date "2022.08.14"]
[Round "3.1"]
[White "Haba, Petr"]
[Black "Murko, David"]
[Result "1/2-1/2"]
[ECO "B67"]
[WhiteElo "2453"]
[BlackElo "2213"]
[Annotator "TA"]
[PlyCount "91"]
[EventDate "2022.08.12"]
[EventType "swiss"]
[EventCountry "CZE"]
[SourceTitle "playchess.com"]
[Source "ChessBase"]
[SourceQuality "1"]
[TimeControl "40/5400+30:1800+30"]

{[%evp 21,91,23,15,-14,0,-3,-1,0,0,-2,0,-42,0,0,36,-4,-2,-77,-20,-32,0,0,0,0,0,-3,0,-6,0,0,0,0,15,0,0,0,14,0,42,0,0,0,5,0,0,0,7,8,22,0,0,0,0,0,0,-32,0,-9,-13,-18,-17,-10,-13,-16,0,0,0,-43,0,-2,0,-109]} 1. e4 {[%emt 0:00:12]} c5 {[%emt 0:00:05]} 2. Nf3 {[%emt 0:00:13]} d6 {[%emt 0:00:05]} 3. d4 {[%emt 0:00:22]} cxd4 {[%emt 0:00:11]} 4. Nxd4 {[%emt 0:00:06]} Nf6 {[%emt 0:00:12]} 5. Nc3 {[%emt 0:00:07]} Nc6 {[%emt 0:00:14]} 6. Bg5 {[%emt 0:00:33]} e6 {[%emt 0:00:16]} 7. Qd2 {[%emt 0:00:46]} a6 {[%emt 0:00:19]} 8. O-O-O {[%emt 0:02:09]} Bd7 {[%emt 0:00:25][%cal Bc8d7,Bd7c6,Bc6b7,Bb7d5][%mdl 32]} 9. Kb1 {[%emt 0:00:30]} b5 {[%emt 0:06:43]} 10. Nxc6 {[%emt 0:01:04]} Bxc6 {[%emt 0:00:08]} 11. f3 {[%emt 0:00:07]} Be7 {[%emt 0:02:08]} 12. Be3 {[%emt 0:07:43] B67: Sicilian: Richter-Rauzer: 7...a6 8 0-0-0 Bd7, lines without 9 f4 Be7.} O-O {[%emt 0:06:05]} 13. Ne2 {[%emt 0:04:28]} Qc7 {[%emt 0:03:13]} 14. Nd4 {[%emt 0:01:28]} Bb7 {[%emt 0:02:16]} 15. g4 {[%emt 0:03:51]} Nd7 {[%emt 0:07:36] [#]} 16. Bg2 $146 {[%emt 0:22:57]} ({Predecessor:} 16. g5 Rfd8 17. h4 d5 18. g6 hxg6 19. h5 g5 20. h6 g6 21. Bxg5 Bxg5 22. Qxg5 {0-1 (49) Fercec,N (2490)-Jankovic,A (2569) Zagreb 2014}) 16... Ne5 {[%emt 0:14:49]} 17. Qe2 $1 {[%emt 0:00:20]} d5 {[%emt 0:05:40]} 18. exd5 {[%emt 0:20:00]} (18. f4 $5 {[%cal Rf4e5]} Nc4 19. exd5 $11) 18... Bxd5 {[%emt 0:00:57]} 19. Nf5 Nc6 {[%emt 0:20:54]} (19... Bxa2+ $17 20. Kxa2 exf5) 20. Nxe7+ $11 {[%emt 0:08:17]} Qxe7 {[%emt 0:00:53]} 21. f4 {[%emt 0:03:12]} Nb4 {[%emt 0:06:06]} 22. Bxd5 {[%emt 0:00:09]} Nxd5 {[%emt 0:00:11]} 23. Bd4 {[%emt 0:03:35][%cal Od4g7]} Rfe8 {[%emt 0:08:18]} 24. Qf3 {[%emt 0:05:41]} Nxf4 {[%emt 0:04:23]} 25. Bxg7 {[%emt 0:02:34]} Kxg7 {[%emt 0:00:04]} (25... e5 $5 26. Bh6 Qf6 27. Bxf4 exf4 $11) 26. Qxf4 {[%emt 0:00:06]} Rad8 {[%emt 0:01:23]} 27. g5 {[%emt 0:04:37]} e5 {[%emt 0:01:43]} 28. Qe3 {[%emt 0:00:23]} Rd6 {[%emt 0:02:36]} 29. Rdf1 {[%emt 0:01:17]} Red8 {[%emt 0:03:31][%cal Be8d8,Bd8d4,Bd4f4][%mdl 32]} 30. a3 {[%emt 0:00:57]} Rd4 {[%emt 0:01:54]} 31. h4 {[%emt 0:00:50]} Qc5 $1 {[%emt 0:00:24][%cal Od4d1] [#] Hoping for ...Rd1+!} 32. Qf3 {[%emt 0:02:14] Prevents Rd1+.} Rf4 {[%emt 0:00:18]} 33. Qe2 {[%emt 0:00:07]} Rdd4 {[%emt 0:00:53]} 34. h5 {[%emt 0:01:05]} ({But not} 34. Qh5 Qc6 $15) 34... h6 {[%emt 0:01:30]} 35. Qg2 {[%emt 0:01:52]} Qd5 {[%emt 0:00:52]} 36. Qg1 {[%emt 0:02:15]} Rxf1+ {[%emt 0:00:38]} 37. Qxf1 {[%emt 0:00:01][%mdl 4096] Endgame KQR-KQR} Rf4 {[%emt 0:00:32]} (37... hxg5 $2 38. h6+ Kg6 39. h7 Rd1+ 40. Qxd1 $18) 38. Qg1 {[%emt 0:00:52]} Rd4 {[%emt 0:00:33]} (38... Rf2 $5 {[%cal Rd5d2]}) 39. gxh6+ {[%emt 0:01:40]} Kxh6 {[%emt 0:00:04]} 40. Qe3+ {[%emt 0:00:03]} Kh7 {[%emt 0:00:37]} 41. Qe1 {[%emt 0:05:44]} Qe4 {[%emt 0:11:45]} 42. Qf1 {[%emt 0:03:25]} Qf4 {[%emt 0:02:13]} 43. Qe1 {[%emt 0:02:13]} Qe4 {[%emt 0:00:15]} 44. Qf1 {[%emt 0:00:06]} Qf4 {[%emt 0:06:21]} (44... f5 $5 {[%cal Rd4d2]} 45. Qg1 f4 $17) 45. Qe1 {[%emt 0:00:30]} Qe4 (45... Qf5 $11) 46. Qf1 {Weighted Error Value: White=0.11 (very precise) /Black=0.12 (very precise)} 1/2-1/2